{"text_format":"1","workbook":"xlsx","n_sheets":21,"sheets":["Introduction","Guide","Démarrage","Résultats - Amont","Résultats - Aval","U1 - Pol Legi Reg","U2 - Securité Explo","U3 - Edu Risques","U4 - Renfo Capacité","U5 - Ctrl Frontière","U6 - Précurseurs","U7 - Coop","U8 - Renseignement","D1 - Neutra","D2 - Exploitation","D3 - Analyse Preuves","D4 - Gestion Info","D5 - Exploitation Tech","D6 - ID Auteurs","D7 - Process Judi","D8 - Élabo Mesures"],"not_rendered":{"charts":2,"images":1,"macros":1,"external_links":0,"defined_names":0,"comments":0,"pivot_tables":0},"unopened":[],"bounds":{"document_bytes":16777216,"sheet_cells":100000,"rows_first":2000,"rows_last":500,"rows_between":2000,"halvings":0,"cell_chars":16384,"cell_head_chars":4096},"cells_cut":0,"cells_raw":0,"read":"whole","date_system":"1900"}

{"sheet":"Introduction","index":0,"n_rows":1,"n_cols":8,"rows_kept":1,"cut":false,"hidden":false,"merged":[[0,7,0,11],[0,5,0,6]]}
[null,null,null,null,null,"Outil d'Auto-Évaluation de la Maturité des Capacités de Lutte contre les EEI",null,"Avant d'utiliser ce document, assurez-vous que vous avez activé les macros dans Excel."]

{"sheet":"Guide","index":1,"n_rows":1,"n_cols":6,"rows_kept":1,"cut":false,"hidden":false,"merged":[[0,5,0,12]]}
[null,null,null,null,null,"Outil d'Auto-Évaluation de la Maturité des Capacités de Lutte contre les EEI"]

{"sheet":"Démarrage","index":2,"n_rows":9,"n_cols":2,"rows_kept":9,"cut":false,"hidden":false,"merged":[]}
[null,"Outil d'Auto-Évaluation de la Maturité des Capacités de Lutte contre les EEI"]
[]
["Date de l'évaluation :","2020-07-01"]
[]
["Description de l'évaluation :","Pays X"]
[]
["Nom(s) de l'évaluateur(s) :","Auteur"]
[]
["Notes :","Ceci est une zone de texte libre"]

{"sheet":"Résultats - Amont","index":3,"n_rows":24,"n_cols":3,"rows_kept":24,"cut":false,"hidden":false,"merged":[[0,2,0,4],[16,0,17,0]]}
[null,null,"Outil d'Auto-Évaluation de la Maturité des Capacités de Lutte contre les EEI"]
["Mesures de lutte contre les EEI en amont - Résumé de la maturité des capacités de lutte contre les EEI"]
["Composants en amont de la capacité de lutte contre les EEI"]
[]
["Composante de la capacité de lutte contre les EEI","Niveau MMC"]
[]
["U1 - Politique, législation et réglementation nationales",{"$f":"'U1 - Pol Legi Reg'!M5","v":1}]
["U2 - Sécurité et contrôle des explosifs",{"$f":"'U2 - Securité Explo'!M5","v":1}]
["U3 - Sensibilisation aux risques liés aux EEI",{"$f":"'U3 - Edu Risques'!M5","v":1}]
["U4 - Renforcement des capacités de lutte contre les EEI",{"$f":"'U4 - Renfo Capacité'!M5","v":1}]
["U5 - Contrôles aux frontières",{"$f":"'U5 - Ctrl Frontière'!M5","v":1}]
["U6 - Contrôle des précurseurs d’EEI",{"$f":"'U6 - Précurseurs'!M5","v":1}]
["U7 - Coopération régionale et internationale, partage d’informations",{"$f":"'U7 - Coop'!M5","v":1}]
["U8 - Opérations de lutte contre les EEI fondées sur le renseignement",{"$f":"'U8 - Renseignement'!M5","v":1}]
[]
[]
["Niveau moyen de maturité des dispositifs de lutte contre les EEI en amont",{"$f":"AVERAGE(B7:B14)","v":1}]
[]
[]
[]
[]
["Date :",{"$f":"Démarrage!B3","v":"2020-07-01"}]
["Description de l'évaluation :",{"$f":"Démarrage!B5","v":"Pays X"}]
["Évaluateur(s) :",{"$f":"Démarrage!B7","v":"Auteur"}]

{"sheet":"Résultats - Aval","index":4,"n_rows":24,"n_cols":3,"rows_kept":24,"cut":false,"hidden":false,"merged":[[0,2,0,5],[16,0,17,0]]}
[null,null,"Outil d'Auto-Évaluation de la Maturité des Capacités de Lutte contre les EEI"]
["Mesures de lutte contre les EEI en aval - Résumé de la maturité des capacités de lutte contre les EEI"]
["Composants en aval de la capacité de lutte contre les EEI"]
[]
["Composante de la capacité de lutte contre les EEI","Niveau MMC"]
[]
["D1 - Réponses aux EEI – Neutralisation",{"$f":"'D1 - Neutra'!M5","v":1}]
["D2 - Réponses aux EEI – Exploitation des lieux",{"$f":"'D2 - Exploitation'!M5","v":1}]
["D3 - Analyse des preuves récupérées",{"$f":"'D3 - Analyse Preuves'!M5","v":1}]
["D4 - Gestion de l’information",{"$f":"'D4 - Gestion Info'!M5","v":1}]
["D5 - Exploitation technique des EEI récupérés",{"$f":"'D5 - Exploitation Tech'!M5","v":1}]
["D6 - Identification des auteurs",{"$f":"'D6 - ID Auteurs'!M5","v":1}]
["D7 - Procédure judiciaire",{"$f":"'D7 - Process Judi'!M5","v":1}]
["D8 - Élaboration de mesures de lutte contre les EEI",{"$f":"'D8 - Élabo Mesures'!M5","v":1}]
[]
[]
["Niveau moyen de maturité des dispositifs de lutte contre les EEI en amont",{"$f":"AVERAGE(B7:B14)","v":1}]
[]
[]
[]
[]
["Date :",{"$f":"Démarrage!B3","v":"2020-07-01"}]
["Description de l'évaluation :",{"$f":"Démarrage!B5","v":"Pays X"}]
["Évaluateur(s) :",{"$f":"Démarrage!B7","v":"Auteur"}]

{"sheet":"U1 - Pol Legi Reg","index":5,"n_rows":5,"n_cols":13,"rows_kept":5,"cut":false,"hidden":false,"merged":[[0,6,0,13],[4,7,5,11]]}
[null,null,null,null,null,null,"Outil d'Auto-Évaluation de la Maturité des Capacités de Lutte contre les EEI"]
["Mesures de lutte contre les EEI en amont - Politique, législation et réglementation nationales"]
[]
[]
[null,null,null,null,null,null,null,"Évaluation du niveau de maturité de la lutte contre les EEI :",null,null,null,null,1]

{"sheet":"U2 - Securité Explo","index":6,"n_rows":5,"n_cols":13,"rows_kept":5,"cut":false,"hidden":false,"merged":[[0,6,0,13],[4,7,5,11]]}
[null,null,null,null,null,null,"Outil d'Auto-Évaluation de la Maturité des Capacités de Lutte contre les EEI"]
["Mesures de lutte contre les EEI en amont - Sécurité et contrôle des explosifs"]
[]
[]
[null,null,null,null,null,null,null,"Évaluation du niveau de maturité de la lutte contre les EEI :",null,null,null,null,1]

{"sheet":"U3 - Edu Risques","index":7,"n_rows":5,"n_cols":13,"rows_kept":5,"cut":false,"hidden":false,"merged":[[0,6,0,13],[4,7,5,11]]}
[null,null,null,null,null,null,"Outil d'Auto-Évaluation de la Maturité des Capacités de Lutte contre les EEI"]
["Mesures de lutte contre les EEI en amont - Sensibilisation aux risques liés aux EEI"]
[]
[]
[null,null,null,null,null,null,null,"Évaluation du niveau de maturité de la lutte contre les EEI :",null,null,null,null,1]

{"sheet":"U4 - Renfo Capacité","index":8,"n_rows":5,"n_cols":13,"rows_kept":5,"cut":false,"hidden":false,"merged":[[0,6,0,13],[4,7,5,11]]}
[null,null,null,null,null,null,"Outil d'Auto-Évaluation de la Maturité des Capacités de Lutte contre les EEI"]
["Mesures de lutte contre les EEI en amont - Renforcement des capacités de lutte contre les EEI"]
[]
[]
[null,null,null,null,null,null,null,"Évaluation du niveau de maturité de la lutte contre les EEI :",null,null,null,null,1]

{"sheet":"U5 - Ctrl Frontière","index":9,"n_rows":5,"n_cols":13,"rows_kept":5,"cut":false,"hidden":false,"merged":[[0,6,0,13],[4,7,5,11]]}
[null,null,null,null,null,null,"Outil d'Auto-Évaluation de la Maturité des Capacités de Lutte contre les EEI"]
["Mesures de lutte contre les EEI en amont - Contrôles aux frontières"]
[]
[]
[null,null,null,null,null,null,null,"Évaluation du niveau de maturité de la lutte contre les EEI :",null,null,null,null,1]

{"sheet":"U6 - Précurseurs","index":10,"n_rows":5,"n_cols":13,"rows_kept":5,"cut":false,"hidden":false,"merged":[[0,6,0,13],[4,7,5,11]]}
[null,null,null,null,null,null,"Outil d'Auto-Évaluation de la Maturité des Capacités de Lutte contre les EEI"]
["Mesures de lutte contre les EEI en amont - Contrôle des précurseurs d’EEI"]
[]
[]
[null,null,null,null,null,null,null,"Évaluation du niveau de maturité de la lutte contre les EEI :",null,null,null,null,1]

{"sheet":"U7 - Coop","index":11,"n_rows":5,"n_cols":13,"rows_kept":5,"cut":false,"hidden":false,"merged":[[0,6,0,13],[4,7,5,11]]}
[null,null,null,null,null,null,"Outil d'Auto-Évaluation de la Maturité des Capacités de Lutte contre les EEI"]
["Mesures de lutte contre les EEI en amont - Coopération régionale et internationale, partage d’informations"]
[]
[]
[null,null,null,null,null,null,null,"Évaluation du niveau de maturité de la lutte contre les EEI :",null,null,null,null,1]

{"sheet":"U8 - Renseignement","index":12,"n_rows":5,"n_cols":13,"rows_kept":5,"cut":false,"hidden":false,"merged":[[0,6,0,13],[4,7,5,11]]}
[null,null,null,null,null,null,"Outil d'Auto-Évaluation de la Maturité des Capacités de Lutte contre les EEI"]
["Mesures de lutte contre les EEI en amont - Opérations de lutte contre les EEI fondées sur le renseignement"]
[]
[]
[null,null,null,null,null,null,null,"Évaluation du niveau de maturité de la lutte contre les EEI :",null,null,null,null,1]

{"sheet":"D1 - Neutra","index":13,"n_rows":5,"n_cols":13,"rows_kept":5,"cut":false,"hidden":false,"merged":[[0,6,0,13],[4,7,5,11]]}
[null,null,null,null,null,null,"Outil d'Auto-Évaluation de la Maturité des Capacités de Lutte contre les EEI"]
["Mesures de lutte contre les EEI en aval - Réponses aux EEI – Neutralisation"]
[]
[]
[null,null,null,null,null,null,null,"Évaluation du niveau de maturité de la lutte contre les EEI :",null,null,null,null,1]

{"sheet":"D2 - Exploitation","index":14,"n_rows":5,"n_cols":13,"rows_kept":5,"cut":false,"hidden":false,"merged":[[0,6,0,13],[4,7,5,11]]}
[null,null,null,null,null,null,"Outil d'Auto-Évaluation de la Maturité des Capacités de Lutte contre les EEI"]
["Mesures de lutte contre les EEI en aval - Réponses aux EEI – Exploitation des lieux"]
[]
[]
[null,null,null,null,null,null,null,"Évaluation du niveau de maturité de la lutte contre les EEI :",null,null,null,null,1]

{"sheet":"D3 - Analyse Preuves","index":15,"n_rows":5,"n_cols":13,"rows_kept":5,"cut":false,"hidden":false,"merged":[[0,6,0,13],[4,7,5,11]]}
[null,null,null,null,null,null,"Outil d'Auto-Évaluation de la Maturité des Capacités de Lutte contre les EEI"]
["Mesures de lutte contre les EEI en aval - Analyse des preuves récupérées"]
[]
[]
[null,null,null,null,null,null,null,"Évaluation du niveau de maturité de la lutte contre les EEI :",null,null,null,null,1]

{"sheet":"D4 - Gestion Info","index":16,"n_rows":5,"n_cols":13,"rows_kept":5,"cut":false,"hidden":false,"merged":[[0,6,0,13],[4,7,5,11]]}
[null,null,null,null,null,null,"Outil d'Auto-Évaluation de la Maturité des Capacités de Lutte contre les EEI"]
["Mesures de lutte contre les EEI en aval - Gestion de l’information"]
[]
[]
[null,null,null,null,null,null,null,"Évaluation du niveau de maturité de la lutte contre les EEI :",null,null,null,null,1]

{"sheet":"D5 - Exploitation Tech","index":17,"n_rows":5,"n_cols":13,"rows_kept":5,"cut":false,"hidden":false,"merged":[[0,6,0,13],[4,7,5,11]]}
[null,null,null,null,null,null,"Outil d'Auto-Évaluation de la Maturité des Capacités de Lutte contre les EEI"]
["Mesures de lutte contre les EEI en aval - Exploitation technique des EEI récupérés"]
[]
[]
[null,null,null,null,null,null,null,"Évaluation du niveau de maturité de la lutte contre les EEI :",null,null,null,null,1]

{"sheet":"D6 - ID Auteurs","index":18,"n_rows":5,"n_cols":13,"rows_kept":5,"cut":false,"hidden":false,"merged":[[0,6,0,13],[4,7,5,11]]}
[null,null,null,null,null,null,"Outil d'Auto-Évaluation de la Maturité des Capacités de Lutte contre les EEI"]
["Mesures de lutte contre les EEI en aval - Identification des auteurs"]
[]
[]
[null,null,null,null,null,null,null,"Évaluation du niveau de maturité de la lutte contre les EEI :",null,null,null,null,1]

{"sheet":"D7 - Process Judi","index":19,"n_rows":5,"n_cols":13,"rows_kept":5,"cut":false,"hidden":false,"merged":[[0,6,0,13],[4,7,5,11]]}
[null,null,null,null,null,null,"Outil d'Auto-Évaluation de la Maturité des Capacités de Lutte contre les EEI"]
["Mesures de lutte contre les EEI en aval - Procédure judiciaire"]
[]
[]
[null,null,null,null,null,null,null,"Évaluation du niveau de maturité de la lutte contre les EEI :",null,null,null,null,1]

{"sheet":"D8 - Élabo Mesures","index":20,"n_rows":5,"n_cols":13,"rows_kept":5,"cut":false,"hidden":false,"merged":[[0,6,0,13],[4,7,5,11]]}
[null,null,null,null,null,null,"Outil d'Auto-Évaluation de la Maturité des Capacités de Lutte contre les EEI"]
["Mesures de lutte contre les EEI en aval - Élaboration de mesures de lutte contre les EEI"]
[]
[]
[null,null,null,null,null,null,null,"Évaluation du niveau de maturité de la lutte contre les EEI :",null,null,null,null,1]